bitfinex/quotes_SOLUSD_20220113
["timestamp","ask_amount","ask_price","bid_price","bid_amount"]
[1642050836502,1.90853148,148.87,148.79,2.687]
[1642050836704,2.15853148,148.87,148.79,2.687]
[1642050837104,0.25,148.87,148.79,12.7658]
[1642050837305,0.25,148.87,148.8,24.5309]
[1642050837506,2.15853148,148.88,148.8,24.5309]
[1642050838808,0.25,148.88,148.8,24.5309]
[1642050839009,105.83622877,148.89,148.8,24.5309]
[1642050844013,115.91582877,148.89,148.8,24.5309]
[1642050844615,1.90853148,148.88,148.8,24.5309]
[1642050845013,2.15853148,148.88,148.8,24.5309]
[1642050847316,2.15853148,148.88,148.79,12.7658]
[1642050847716,2.15853148,148.88,148.79,2.687]
[1642050848616,4.84553148,148.88,148.79,2.687]
[1642050849817,2.15853148,148.88,148.79,2.687]
[1642050851018,12.23873148,148.88,148.78,26.30754146]
[1642050851220,23.8562,148.87,148.78,2.687]
[1642050851620,24.1062,148.87,148.78,2.687]
[1642050852423,26.01473148,148.87,148.78,2.687]
[1642050852620,2.687,148.86,148.77,25.8688]
[1642050853024,2.937,148.86,148.77,25.8688]
[1642050854323,2.937,148.86,148.77,35.949]
[1642050854552,2.937,148.86,148.77,33.262]
[1642050854553,4.84553148,148.86,148.77,33.262]
[1642050856854,2.15853148,148.86,148.77,33.262]
[1642050857655,2.15853148,148.86,148.78,23.9505]
[1642050857855,2.15853148,148.86,148.78,36.7171]
[1642050858055,0.25,148.86,148.78,36.7171]
[1642050858257,26.01473148,148.87,148.78,36.7171]
[1642050861469,26.01473148,148.87,148.78,103.6771]
[1642050862961,26.01473148,148.87,148.78,36.7171]
[1642050863365,26.01473148,148.87,148.78,103.6771]
[1642050864764,26.01473148,148.87,148.78,113.1771]
[1642050866166,24.1062,148.87,148.78,113.1771]
[1642050868871,26.01473148,148.87,148.78,113.1771]
[1642050869767,24.1062,148.87,148.78,113.1771]
[1642050870568,26.01473148,148.87,148.78,113.1771]
[1642050872971,26.01473148,148.87,148.78,46.2171]
[1642050873171,26.01473148,148.87,148.78,26.6375]
[1642050873373,31.19773148,148.87,148.78,26.6375]
[1642050874173,4.59553148,148.86,148.78,23.9505]
[1642050874575,4.84553148,148.86,148.78,23.9505]
[1642050876578,2.15853148,148.86,148.78,23.9505]
[1642050878176,2.15853148,148.86,148.78,34.0301]
[1642050886486,2.15853148,148.86,148.78,23.9505]
[1642050887287,4.84553148,148.86,148.78,23.9505]
[1642050889823,4.84553148,148.86,148.78,34.03]
[1642050890124,4.84553148,148.86,148.78,23.9505]
[1642050891726,2.15853148,148.86,148.78,23.9505]
[1642050892926,1.90853148,148.86,148.78,34.03]
[1642050893127,1.90853148,148.86,148.78,43.53]
[1642050893326,1.90853148,148.86,148.79,2.687]
[1642050894127,1.90853148,148.86,148.8,29.9209703]
[1642050894532,2.15853148,148.86,148.8,29.9209703]
[1642050894928,0.25,148.86,148.8,29.9209703]
[1642050895128,2.15853148,148.87,148.8,29.9209703]
[1642050895330,2.15853148,148.87,148.8,39.9990703]
[1642050895728,0.25,148.87,148.8,39.9990703]
[1642050896130,2.15853148,148.88,148.8,39.9990703]
[1642050896330,2.15853148,148.88,148.81,23.2931]
[1642050898332,1.90853148,148.87,148.81,23.2931]
[1642050898735,2.15853148,148.87,148.81,23.2931]
[1642050904346,2.15853148,148.87,148.81,25.9801]
[1642050904548,0.25,148.87,148.81,25.9801]
[1642050904847,2.15853148,148.88,148.81,25.9801]
[1642050905650,1.90853148,148.88,148.82,9.5]
[1642050905850,1.90853148,148.88,148.83,2.687]
[1642050906051,1.90853148,148.88,148.83,69.647]
[1642050906251,1.90853148,148.88,148.83,2.687]
[1642050906451,1.90853148,148.88,148.83,26.4487]
[1642050907067,0.25,148.88,148.83,26.4487]
[1642050907269,2.15853148,148.91,148.83,36.5244]
[1642050907467,2.15853148,148.91,148.83,26.4487]
[1642050907970,0.25,148.91,148.83,26.4487]
[1642050908170,77.94023106,148.92,148.83,26.4487]
[1642050908370,80.62623106,148.92,148.83,23.7617]
[1642050908570,1.90853148,148.91,148.83,23.7617]
[1642050908869,2.15853148,148.91,148.83,23.7617]
[1642050909271,2.15853148,148.91,148.83,33.838]
[1642050910071,2.15853148,148.91,148.83,23.7617]
[1642050910673,0.25,148.91,148.83,23.7617]
[1642050911171,77.94023106,148.92,148.83,23.7617]
[1642050912174,77.94023106,148.92,148.83,33.8378]
[1642050913580,1.90853148,148.92,148.84,80.43293333]
[1642050913780,1.90853148,148.92,148.89,10.0714]
[1642050913983,3.81913653,148.95,148.92,66.96]
[1642050914180,3.81913653,148.95,148.92,76.46]
[1642050914580,3.81913653,148.95,148.93,29.81804809]
[1642050914781,30.99129042,149.03,148.94,77.028]
[1642050915181,31.24129042,149.03,148.94,10.068]
[1642050915982,27.42215389,149.03,148.94,10.068]
[1642050916183,27.42215389,149.03,148.95,66.96]
[1642050916482,27.42215389,149.03,148.95,77.0278]
[1642050916681,27.42215389,149.03,148.95,10.0678]
[1642050917886,2.935,149.03,148.95,10.0678]
[1642050918211,0.25,149.03,148.95,10.0678]
[1642050918384,0.25,149.03,148.94,34.9032]
[1642050918583,2.934,149.05,148.94,34.9032]
[1642050918784,2.934,149.05,148.94,32.2192]
[1642050918985,33.15001703,149.04,148.94,32.2192]
[1642050919186,2.684,149.03,148.94,32.2192]
[1642050919584,2.434,149.03,148.94,32.2192]
[1642050920185,12.5041,149.03,148.94,32.2192]
[1642050922487,2.184,149.03,148.94,32.2192]
[1642050922687,105.29693143,149.06,148.95,69.904]
[1642050922889,102.61293143,149.06,148.97,66.96]
[1642050923086,102.61293143,149.06,148.98,2.684]
[1642050923587,102.61293143,149.06,148.98,28.573412]
[1642050923987,77.70383143,149.06,148.98,105.599412]
[1642050925291,77.95383143,149.06,148.98,105.599412]
[1642050925717,77.95383143,149.06,148.99,9.5]
[1642050925890,77.95383143,149.06,149.0,2.684]
[1642050926088,77.95383143,149.06,149.01,10.064]
[1642050927389,2.683,149.13,149.02,66.96]
[1642050927590,78.3658,149.13,149.04,10.0616]
[1642050928190,102.44794398,149.13,149.04,10.0616]
[1642050929191,102.44794398,149.13,149.04,35.98381524]
[1642050931195,102.69794398,149.13,149.04,35.98381524]
[1642050932400,100.01494398,149.13,149.04,35.98381524]
[1642050933627,102.69794398,149.13,149.04,25.92221524]
[1642050933827,102.69794398,149.13,149.05,10.0612]
[1642050934027,100.01494398,149.13,149.05,10.0612]
[1642050935328,75.9328,149.13,149.05,10.0612]
[1642050935631,0.25,149.13,149.08,10.0592]
[1642050936028,0.25,149.14,149.08,77.0192]
[1642050936231,2.682,149.16,149.08,77.0192]
[1642050936629,2.932,149.16,149.08,77.0192]
[1642050936828,2.682,149.16,149.08,77.0192]
[1642050937030,2.682,149.16,149.09,9.5]
[1642050937231,2.682,149.2,149.13,10.0559]
[1642050937529,89.66763653,149.23,149.13,10.0559]
[1642050937530,2.681,149.22,149.13,10.0559]
[1642050937929,2.681,149.22,149.13,38.21555383]
[1642050940130,2.931,149.22,149.13,38.21555383]
[1642050940730,2.681,149.22,149.13,105.17555383]
[1642050940931,104.9354616,149.23,149.14,2.681]
[1642050941133,104.9354616,149.23,149.15,10.054]
[1642050942130,105.1854616,149.23,149.15,10.054]
[1642050942331,105.1854616,149.23,149.14,2.681]
[1642050942731,2.681,149.22,149.14,2.681]
[1642050943139,2.931,149.22,149.14,2.681]
[1642050943732,2.931,149.22,149.12,2.681]
[1642050944334,10.0579,149.2,149.12,2.681]
[1642050944734,10.3079,149.2,149.12,2.681]
[1642050947037,11.98679596,149.2,149.12,2.681]
[1642050947238,14.66779596,149.2,149.12,2.681]
[1642050947539,12.9889,149.2,149.12,2.681]
[1642050949739,12.9889,149.2,149.1,26.4498]
[1642050951638,12.9889,149.2,149.1,2.681]
[1642050953241,37.9031,149.2,149.1,2.681]
[1642050953539,35.2221,149.2,149.1,2.681]
[1642050954550,35.2221,149.2,149.11,66.96]
[1642050954742,25.1642,149.2,149.11,66.96]
[1642050954944,2.681,149.21,149.12,0.26]
[1642050955143,3.81913653,149.22,149.12,12.441]
[1642050955445,79.0295,149.23,149.13,66.96]
[1642050955446,76.3485,149.23,149.13,66.96]
[1642050955643,76.3485,149.23,149.14,12.181]
[1642050955844,76.3485,149.23,149.15,23.16907615]
[1642050956144,76.3485,149.23,149.16,10.0538]
[1642050956445,76.5985,149.23,149.16,10.0538]
[1642050960250,76.5985,149.23,149.15,23.16907615]
[1642050961150,76.5985,149.23,149.14,33.4067]
[1642050962255,76.5985,149.23,149.15,10.0546]
[1642050962454,76.5985,149.23,149.14,33.4067]
[1642050963655,80.41763653,149.23,149.14,33.4067]
[1642050963853,90.47353653,149.23,149.14,43.462]
[1642050964153,80.16763653,149.23,149.14,43.462]
[1642050964953,3.82223633,149.22,149.14,43.462]
[1642050965355,3.82223633,149.22,149.14,33.4067]
[1642050965555,4.07223633,149.22,149.14,33.4067]
[1642050965753,0.25,149.22,149.14,33.4067]
[1642050966155,80.41763653,149.23,149.14,33.4067]
[1642050966554,3.81913653,149.22,149.14,33.4067]
[1642050966755,4.06913653,149.22,149.14,33.4067]
[1642050967258,4.06913653,149.22,149.14,43.4617]
[1642050971162,4.06913653,149.22,149.14,43.7117]
[1642050971364,4.06913653,149.22,149.15,2.681]
[1642050971764,4.06913653,149.22,149.17,10.0529]
[1642050972272,0.25,149.22,149.17,10.0529]
[1642050972675,4.06913653,149.24,149.18,24.01977593]
[1642050972872,4.06913653,149.24,149.18,34.07237593]
[1642050973275,0.25,149.24,149.18,34.07237593]
[1642050973673,27.52553653,149.25,149.18,34.07237593]
[1642050978248,23.7064,149.25,149.18,34.07237593]
[1642050983960,23.4564,149.25,149.18,34.07237593]
[1642050984567,27.27553653,149.25,149.18,34.07237593]
[1642050985161,27.52553653,149.25,149.18,34.07237593]
[1642050985363,23.7064,149.25,149.18,34.07237593]
[1642050986264,23.7064,149.25,149.17,2.68]
[1642050986465,2.68,149.24,149.12,2.68]
[1642050986665,2.68,149.24,149.12,24.5016]
[1642050986666,76.9579,149.24,149.12,24.5016]
[1642050986863,1.67889596,149.23,149.12,24.5016]
[1642050987065,2.681,149.22,149.12,24.5016]
[1642050987365,24.83193955,149.21,149.12,24.5016]
[1642050987565,2.681,149.2,149.12,24.5016]
[1642050987764,2.931,149.2,149.12,24.5016]
[1642050988164,2.931,149.2,149.12,34.5583]
[1642050988668,0.25,149.2,149.12,34.5583]
[1642050989065,0.25,149.21,149.13,2.681]
[1642050989267,4.06913653,149.22,149.15,10.0545]
[1642050990198,0.25,149.22,149.15,10.0545]
[1642050990699,26.762,149.23,149.15,10.0545]
[1642050992300,26.762,149.23,149.14,22.7191]
[1642050993702,32.26003249,149.23,149.14,22.7191]
[1642050993905,42.31593249,149.23,149.14,32.7743]
[1642050994103,42.31593249,149.23,149.14,10.0552]
[1642050994306,42.31593249,149.23,149.12,25.6107]
[1642050994903,42.31593249,149.23,149.12,2.681]
[1642050995302,3.8274236,149.22,149.12,2.681]
[1642050995503,10.0579,149.2,149.11,9.5]
[1642050995702,10.3079,149.2,149.11,9.5]
[1642050996304,32.9789,149.2,149.1,59.7525002]
[1642050997602,22.921,149.2,149.1,59.7525002]
[1642050998204,26.25973677,149.19,149.1,59.7525002]
[1642050998604,26.50973677,149.19,149.1,59.7525002]
[1642050999204,26.50973677,149.19,149.1,37.1889]
[1642051000605,29.19073677,149.19,149.1,34.5079]
[1642051001509,29.19073677,149.19,149.1,24.4504]
[1642051001908,30.86963273,149.19,149.1,24.4504]
[1642051002106,40.36963273,149.19,149.08,12.7398]
[1642051002315,24.8995,149.18,149.08,2.681]
[1642051002506,10.0607,149.16,149.08,2.681]
[1642051002707,10.3107,149.16,149.08,2.681]
[1642051003507,0.25,149.16,149.08,2.681]
[1642051003910,77.06409596,149.17,149.08,2.681]
[1642051004110,74.38209596,149.17,149.08,12.7403]
[1642051004307,74.38209596,149.17,149.08,10.0593]
[1642051005309,84.44209596,149.17,149.07,12.742]
[1642051005508,87.12409596,149.17,149.07,12.742]
[1642051006613,87.12409596,149.17,149.07,10.06]
[1642051007809,87.12409596,149.17,149.06,49.6941658]
[1642051009121,87.12409596,149.17,149.06,47.0121658]
[1642051009317,87.12409596,149.17,149.06,57.0727658]
[1642051010518,75.3852,149.17,149.06,57.0727658]
[1642051011517,72.7032,149.17,149.07,2.682]
[1642051011721,72.7032,149.17,149.09,10.0587]
[1642051012519,72.7032,149.17,149.07,2.682]
[1642051012721,74.38209596,149.17,149.07,2.682]
[1642051013424,74.38209596,149.17,149.07,12.7414]
[1642051013926,74.38209596,149.17,149.08,22.7595]
[1642051015427,84.44229596,149.17,149.08,22.7595]
[1642051018763,84.44229596,149.17,149.07,12.7414]
[1642051018961,93.94229596,149.17,149.07,2.682]
[1642051020469,93.94229596,149.17,149.06,12.7426]
[1642051020666,93.94229596,149.17,149.07,24.2297]
[1642051021268,2.682,149.16,149.07,24.2297]
[1642051021468,10.0614,149.15,149.07,24.2297]
[1642051021670,2.682,149.14,149.07,24.2297]
[1642051021870,23.47666631,149.13,149.07,24.2297]
[1642051022269,23.72666631,149.13,149.07,24.2297]
[1642051023878,0.25,149.13,149.07,24.2297]
[1642051024278,14.67289596,149.14,149.07,24.2297]
[1642051024579,11.99089596,149.14,149.04,92.559]
[1642051024776,47.69330292,149.13,149.05,23.3963]
[1642051025178,24.1656,149.13,149.05,23.3963]
[1642051027398,1.67889596,149.12,149.05,23.3963]
[1642051027700,1.92889596,149.12,149.05,23.3963]
[1642051027903,0.25,149.12,149.05,23.3963]
[1642051028900,36.9114,149.13,149.05,23.3963]
[1642051032406,26.8486,149.13,149.05,23.3963]
[1642051034608,1.91523457,149.12,149.05,23.3963]
[1642051035212,2.16523457,149.12,149.05,23.3963]
[1642051039010,12.22893457,149.12,149.05,23.3963]
[1642051039411,12.22893457,149.12,149.03,22.8298]
[1642051039611,24.4892,149.11,149.03,22.8298]
[1642051040111,24.7392,149.11,149.03,22.8298]
[1642051040311,26.65443457,149.11,149.03,22.8298]
[1642051041312,36.71873457,149.11,149.02,26.181]
[1642051044317,26.65443457,149.11,149.02,26.181]
[1642051044519,26.65443457,149.11,149.02,36.2443]
[1642051045317,26.65443457,149.11,149.02,26.181]
[1642051047623,2.683,149.1,149.02,23.499]
[1642051047821,26.65443457,149.11,149.02,26.182]
[1642051048221,36.71873457,149.11,149.02,26.182]
[1642051049021,39.40173457,149.11,149.02,26.182]
[1642051049422,29.33743457,149.11,149.02,26.182]
[1642051051024,1.91523457,149.1,149.02,26.182]
[1642051051224,2.16523457,149.1,149.02,23.499]
[1642051052323,12.23033457,149.1,149.02,23.499]
[1642051053124,2.16523457,149.1,149.02,23.499]
[1642051053927,2.16523457,149.1,149.02,33.5624]
[1642051054530,1.91523457,149.1,149.02,33.5624]
[1642051054725,1.91523457,149.1,149.03,2.683]
[1642051055029,1.91523457,149.1,149.03,12.7454]
[1642051055835,0.25,149.1,149.03,12.7454]
[1642051056032,0.25,149.1,149.03,10.0624]
[1642051056231,2.16523457,149.11,149.03,10.0624]
[1642051056431,2.16523457,149.11,149.04,24.9573]
[1642051056630,2.16523457,149.11,149.05,2.683]
[1642051056832,2.16523457,149.11,149.04,35.0194]
[1642051058135,0.25,149.11,149.04,35.0194]
[1642051058638,80.58543457,149.12,149.04,35.0194]
[1642051064064,80.58543457,149.12,149.04,24.9573]
[1642051065764,2.683,149.11,149.04,24.9573]
[1642051066066,4.59823457,149.11,149.04,24.9573]
[1642051066270,4.84823457,149.11,149.04,24.9573]
[1642051067166,2.16523457,149.11,149.04,24.9573]
[1642051071073,24.98463457,149.11,149.04,24.9573]
[1642051072274,24.98463457,149.11,149.01,12.7465]
[1642051072475,24.98463457,149.11,149.0,35.1250906]
[1642051072476,2.683,149.1,149.02,23.431]
[1642051072776,2.933,149.1,149.02,23.431]
[1642051073777,1.91523457,149.09,149.02,23.431]
[1642051074177,2.16523457,149.09,149.02,23.431]
[1642051074375,27.12323457,149.09,149.02,23.431]
[1642051075777,25.208,149.09,149.02,23.431]
[1642051075977,48.78327355,149.09,149.02,23.431]
[1642051079579,25.208,149.09,149.02,23.431]
[1642051084887,25.208,149.09,149.0,2.683]
[1642051085088,25.208,149.09,148.98,24.96985944]
[1642051085089,34.708,149.09,148.99,2.683]
[1642051085291,2.683,149.08,148.98,24.96985944]
[1642051085690,2.933,149.08,148.98,23.1402]
[1642051085888,10.0679,149.06,148.98,48.43267581]
[1642051086290,10.3179,149.06,148.98,48.43267581]
[1642051086890,10.3179,149.06,148.99,2.684]
[1642051088114,12.184,149.05,148.97,24.4518]
[1642051088313,10.0702,149.03,148.97,24.4518]
[1642051088712,10.3202,149.03,148.97,24.4518]
[1642051091220,10.3202,149.03,148.97,51.55968567]
[1642051091617,0.25,149.03,148.97,51.55968567]
[1642051092016,43.6834,149.05,148.97,51.55968567]
[1642051093119,43.6834,149.05,148.97,24.4518]
[1642051095221,43.6834,149.05,148.92,14.58325944]
[1642051095424,79.7396,149.04,148.93,22.5004]
[1642051095622,10.0706,149.02,148.93,22.5004]
[1642051096024,24.9468,149.01,148.93,22.5004]
[1642051096224,27.8818,149.01,148.93,54.17190843]
[1642051096726,0.25,149.01,148.93,54.17190843]
[1642051097327,35.2454,149.03,148.93,54.17190843]
[1642051098325,10.071,149.02,148.93,54.17190843]
[1642051098525,2.685,149.01,148.93,54.17190843]
[1642051098726,27.1396,149.01,148.93,54.17190843]
[1642051101929,27.1396,149.01,148.93,22.5004]
[1642051104829,24.4546,149.01,148.93,22.5004]
[1642051107834,24.92829303,149.0,148.93,22.5004]
[1642051108234,25.17829303,149.0,148.93,22.5004]
[1642051109135,0.25,149.0,148.93,22.5004]
[1642051109535,24.4546,149.01,148.93,22.5004]
[1642051113338,24.4546,149.01,148.93,32.5697]
[1642051115543,24.4546,149.01,148.93,35.2547]
[1642051116148,24.4546,149.01,148.93,37.17149992]
[1642051116350,24.4546,149.01,148.93,34.48649992]
[1642051117151,0.25,149.01,148.93,34.48649992]
[1642051117353,3.92676171,149.03,148.93,34.73649992]
[1642051117551,0.25,149.03,148.97,10.0662]
[1642051117853,0.25,149.03,148.98,2.684]
[1642051118050,0.25,149.03,148.96,9.5]
[1642051118252,2.684,149.1,148.97,49.50005176]
[1642051118451,27.3297,149.1,148.97,49.50005176]
[1642051119254,39.07379596,149.1,148.99,10.0649]
[1642051119453,39.07379596,149.1,149.0,23.6153]
[1642051119657,39.32379596,149.1,149.0,23.6153]
[1642051119855,39.07379596,149.1,149.0,23.6153]
[1642051121179,39.32379596,149.1,149.0,23.6153]
[1642051126384,41.19793739,149.1,149.0,23.6153]
[1642051128492,41.19793739,149.1,149.0,26.2983]
[1642051130493,38.51393739,149.1,149.0,26.2983]
[1642051130891,38.26393739,149.1,149.0,26.2983]
[1642051132221,38.51393739,149.1,149.0,26.2983]
[1642051133924,2.683,149.09,149.0,23.6153]
[1642051134124,10.0667,149.07,148.98,2.683]
[1642051134329,10.0667,149.07,148.97,27.243]
[1642051134525,10.3167,149.07,148.97,27.243]
[1642051134724,1.67889596,149.06,148.97,27.243]
[1642051135226,26.79718346,149.05,148.97,27.243]
[1642051135626,27.04718346,149.05,148.97,27.243]
[1642051135824,10.318,149.05,148.97,27.243]
[1642051136023,0.25,149.05,148.98,23.0135]
[1642051136625,2.934,149.07,148.98,23.0135]
[1642051137327,2.934,149.07,148.98,33.0796]
[1642051141439,0.25,149.07,148.98,35.7636]
[1642051141638,38.23064143,149.08,148.98,35.7636]
[1642051144046,38.23064143,149.08,148.98,33.0796]
[1642051146544,38.23064143,149.08,148.98,35.7636]
[1642051147647,1.87414143,149.07,148.98,35.7636]
[1642051147846,11.94064143,149.07,148.98,35.7636]
[1642051148046,12.19064143,149.07,148.98,35.7636]
[1642051151752,2.12414143,149.07,148.98,35.7636]
[1642051153152,0.25,149.07,148.98,35.7636]
[1642051153655,38.23014143,149.08,148.98,33.0796]
[1642051154156,1.87414143,149.07,148.98,33.0796]
[1642051154753,2.12414143,149.07,148.98,33.0796]
[1642051157659,1.67889596,149.06,148.98,33.0796]
[1642051157857,1.67889596,149.06,148.98,35.7636]
[1642051158057,1.92889596,149.06,148.98,35.7636]
[1642051158658,1.67889596,149.05,148.98,35.7636]
[1642051159058,0.25,149.05,148.98,35.7636]
[1642051159758,24.1623,149.06,148.98,35.7636]
[1642051161161,24.4123,149.06,148.98,35.7636]
[1642051164562,24.4123,149.06,148.98,33.0796]
[1642051165466,24.4123,149.06,148.98,22.5796]
[1642051168867,24.1623,149.06,148.99,2.684]
[1642051170171,24.4123,149.06,148.99,2.684]
[1642051170371,24.4123,149.06,148.98,22.5796]
[1642051171772,24.4123,149.06,148.98,25.2636]
[1642051172773,24.4123,149.06,148.98,22.5796]
[1642051175000,24.4123,149.06,149.0,10.0644]
[1642051175202,24.4123,149.06,149.01,26.72743353]
[1642051177001,0.25,149.06,149.01,26.72743353]
[1642051177201,76.4575,149.07,149.01,26.72743353]
[1642051183311,1.87414143,149.09,149.01,26.72743353]
[1642051183516,1.87414143,149.09,149.02,26.1169]
[1642051183711,1.87414143,149.09,149.02,35.8669]
[1642051184113,1.87414143,149.09,149.03,66.96]
[1642051184313,1.87414143,149.09,149.05,66.96]
[1642051184515,1.87414143,149.09,149.05,72.299]
[1642051184714,1.87414143,149.09,149.05,72.549]
[1642051184914,1.87414143,149.12,149.06,10.059]
[1642051185114,1.87414143,149.12,149.07,23.08616628]
[1642051185314,2.12414143,149.12,149.07,23.08616628]
[1642051185514,1.87414143,149.12,149.07,23.08616628]
[1642051186714,1.87414143,149.12,149.08,10.0589]
[1642051186914,0.25,149.12,149.08,10.0589]
[1642051187316,2.12414143,149.15,149.08,10.0589]
[1642051187519,2.12414143,149.15,149.05,2.932]
[1642051187920,2.12414143,149.15,149.05,2.682]
[1642051188222,3.80303739,149.15,149.05,2.682]
[1642051188418,3.80303739,149.15,149.06,27.31683166]
[1642051188619,2.682,149.14,149.06,27.31683166]
[1642051189019,2.932,149.14,149.06,27.31683166]
[1642051189220,12.9938,149.14,149.06,27.31683166]
[1642051189623,35.6242,149.14,149.06,27.31683166]
[1642051189823,1.87414143,149.13,149.06,27.31683166]
[1642051190025,2.682,149.12,149.06,27.31683166]
[1642051190222,2.932,149.12,149.06,27.31683166]
[1642051191228,0.25,149.12,149.06,27.31683166]
[1642051191627,4.80614143,149.13,149.06,27.31683166]
[1642051195553,2.12414143,149.13,149.06,34.07783166]
[1642051195753,0.25,149.13,149.06,34.32783166]
[1642051196052,0.25,149.13,149.06,43.82783166]
[1642051196255,2.12414143,149.14,149.06,110.78783166]
[1642051196453,2.12414143,149.14,149.07,0.26]
[1642051196653,2.12414143,149.14,149.09,10.0582]
[1642051197253,0.25,149.14,149.09,10.0582]
[1642051197653,1.87414143,149.15,149.09,10.0582]
[1642051197654,2.12414143,149.15,149.09,10.0582]
[1642051198155,2.12414143,149.15,149.09,16.7452]
[1642051198554,0.25,149.15,149.09,16.7452]
[1642051198754,26.75724143,149.17,149.09,83.7052]
[1642051199352,2.12414143,149.17,149.09,83.7052]
[1642051199553,1.87414143,149.17,149.09,83.7052]
[1642051199755,1.87414143,149.18,149.1,9.76]
[1642051199957,1.87414143,149.18,149.13,26.5939773]
[1642051200354,1.87414143,149.18,149.13,93.5539773]
[1642051200755,1.87414143,149.21,149.13,93.5539773]
[1642051201556,2.12414143,149.21,149.13,93.5539773]
[1642051202158,0.25,149.21,149.14,10.055]
[1642051202360,100.54464143,149.23,149.14,34.8814]
[1642051202959,100.54464143,149.23,149.15,0.26]
[1642051203160,100.54464143,149.23,149.15,7.668]
[1642051203762,100.79464143,149.23,149.15,7.668]
[1642051204162,100.79464143,149.23,149.16,10.0536]
[1642051204462,98.9205,149.23,149.16,10.0536]
[1642051204761,98.6705,149.23,149.16,10.0536]
[1642051206165,98.9205,149.23,149.16,10.0536]
[1642051207467,98.6705,149.23,149.16,10.0536]
[1642051207772,74.4475,149.23,149.16,19.8036]
[1642051207967,1.87414143,149.24,149.16,19.8036]
[1642051208269,1.87414143,149.25,149.2,10.0507]
[1642051208468,1.87414143,149.25,149.21,24.23744404]
[1642051209272,1.87414143,149.25,149.22,66.96]
[1642051209472,1.87414143,149.25,149.23,5.71219997]
[1642051209672,4.143e-05,149.25,149.23,5.96219997]
[1642051209873,4.143e-05,149.27,149.24,41.26]
[1642051210774,4.143e-05,149.27,149.25,6.06439993]
[1642051210973,4.143e-05,149.27,149.26,0.26]
[1642051211278,4.143e-05,149.27,149.26,29.26]
[1642051211476,3.74828286,149.31,149.27,31.93127048]
[1642051211673,2.678,149.33,149.28,66.96]
[1642051211872,3.74828286,149.35,149.29,77.0043]
[1642051212675,3.74828286,149.35,149.3,0.26]
[1642051212877,3.74828286,149.35,149.31,10.0433]
[1642051213074,78.7324,149.39,149.31,10.0433]
[1642051213973,78.9824,149.39,149.31,10.0433]
[1642051217884,78.9824,149.39,149.31,77.0033]
[1642051218309,78.9824,149.39,149.32,10.3026]
[1642051218681,76.3044,149.39,149.32,10.3026]
[1642051219088,76.3044,149.39,149.33,31.34915654]
[1642051219687,76.3044,149.39,149.33,41.39165654]
[1642051219886,76.3044,149.39,149.28,45.654]
[1642051220088,2.678,149.38,149.28,45.654]
[1642051220286,2.928,149.38,149.29,0.26]
[1642051220789,2.928,149.38,149.28,45.904]
[1642051220986,2.928,149.38,149.29,23.71913159]
[1642051221189,2.928,149.38,149.31,10.0433]
[1642051223591,0.25,149.38,149.31,10.0433]
[1642051223792,76.3044,149.39,149.31,10.0433]
[1642051228198,23.11077214,149.38,149.29,59.67293159]
[1642051228398,23.11077214,149.38,149.29,59.92293159]
[1642051228595,23.36077214,149.38,149.29,59.92293159]
[1642051229796,0.25,149.38,149.29,59.92293159]
[1642051229996,98.917,149.39,149.29,59.92293159]
[1642051230201,108.9627,149.39,149.29,59.92293159]
[1642051230900,111.6407,149.39,149.29,59.92293159]
[1642051231096,7.57834682,149.38,149.29,59.99293159]
[1642051231295,7.82834682,149.38,149.29,59.99293159]
[1642051232098,3.99828286,149.38,149.29,59.99293159]
[1642051233928,3.99828286,149.38,149.29,57.06493159]